fUSD/lending_fUSD_20260421
["ID","MTS","AMOUNT","RATE_DAILY","PERIOD"]
[420939391,1776759032745,-500.0,0.00010166,2]
[420939392,1776759032755,-200.0,0.00010167,2]
[420939393,1776759032765,-226000.0,0.00010167,2]
[420939394,1776759032774,-502.74187909,0.00010173,2]
[420939395,1776759032783,-500.0,0.00010173,2]
[420939396,1776759032794,-500.0,0.00010173,2]
[420939397,1776759032804,-500.0,0.00010173,2]
[420939398,1776759032813,-500.0,0.00010173,2]
[420939399,1776759032823,-500.0,0.00010173,2]
[420939400,1776759032832,-500.0,0.00010173,2]
[420939401,1776759032842,-160.63929212,0.00010173,2]
[420939402,1776759032852,-500.44215231,0.00010173,2]
[420939403,1776759032862,-500.0,0.00010173,2]
[420939404,1776759032871,-305.68024841,0.00010173,2]
[420939405,1776759032885,-500.61805337,0.00010173,2]
[420939406,1776759032894,-500.0,0.00010173,2]
[420939407,1776759032903,-500.1163888,0.00010173,2]
[420939408,1776759032913,-164.66456417,0.00010173,2]
[420939409,1776759032923,-3436.60031527,0.00010424,2]
[420939410,1776759032932,-7185.12,0.00010475,2]
[420939411,1776759032942,-9999.99,0.00010475,2]
[420939412,1776759032952,-6193.85,0.00010475,2]
[420939413,1776759032963,-23402.22,0.00010475,2]
[420939414,1776759032973,-4999.99,0.00010475,2]
[420939415,1776759032982,-7499.18963501,0.00010485,2]
[420939416,1776759032992,-5000.0,0.00010485,2]
[420939417,1776759033001,-5000.0,0.00010485,2]
[420939418,1776759033011,-5000.0,0.00010485,2]
[420939419,1776759033020,-5000.0,0.00010485,2]
[420939420,1776759033035,-3886.55529313,0.00010509,2]
[420939421,1776759033045,-250.0,0.00010509,2]
[420939422,1776759033055,-3432.604,0.0001061,2]
[420939423,1776759033066,-232.803,0.0001061,2]
[420939424,1776759033075,-19835.85513726,0.00010638,2]
[420939425,1776759033085,-190.0,0.00010664,2]
[420939426,1776759033095,-112993.62191303,0.0001069,3]
[420939427,1776759033112,-920.28363432,0.0001069,3]
[420939465,1776759039698,-275.25680042,0.0001069,3]
[420939466,1776759039710,-9286.0,0.0001069,3]
[420939467,1776759039740,-571.58723446,0.0001069,3]
[420939468,1776759039756,-11765.29547345,0.0001069,3]
[420939475,1776759040765,-573.4823132,0.0001069,3]
[420939476,1776759040872,-3852.0,0.0001069,3]
[420939534,1776759043408,-2667.23149115,0.0001069,3]
[420939563,1776759046312,-13802.68538998,0.0001069,3]
[420939564,1776759046322,-152.479077,0.0001069,2]
[420939565,1776759046331,-151.0,0.0001069,2]
[420939566,1776759046340,-42429.22289098,0.000107,2]
[420939567,1776759046426,-3908.56308237,0.000107,2]
[420939568,1776759046437,-6082.03665888,0.000107,2]
[420939569,1776759046449,-3890.05609071,0.000107,2]
[420939570,1776759046460,-2257.94841774,0.000107,2]
[420939571,1776759046471,-7094.58657552,0.000107,2]
[420939572,1776759046494,-284.55529313,0.000107,2]
[420939573,1776759046599,-10230.28280636,0.000107,2]
[420939574,1776759046610,-12447.52767686,0.000107,2]
[420939575,1776759046621,-128988.44708161,0.000107,2]
[420939660,1776759466243,150.0,0.00011233,120]
[420939663,1776760064118,-1084.0,9.402e-05,2]
[420939664,1776760064140,-3888.253,9.403e-05,2]
[420939665,1776760064163,-261.3,9.403e-05,2]
[420939666,1776760064184,-4766.447,9.495e-05,2]
[420939667,1776760065386,-1911.5624,9.495e-05,2]
[420939668,1776760065408,-500.0,9.573e-05,2]
[420939669,1776760065430,-500.0,9.573e-05,2]
[420939670,1776760065452,-256.17,9.594e-05,2]
[420939671,1776760065474,-500.0,9.594e-05,2]
[420939672,1776760065497,-500.0,9.594e-05,2]
[420939673,1776760065520,-500.0,9.594e-05,2]
[420939674,1776760065542,-476.79204268,9.594e-05,2]
[420939675,1776760065564,-500.0,9.594e-05,2]
[420939676,1776760065588,-500.0,9.594e-05,2]
[420939677,1776760065618,-500.0,9.594e-05,2]
[420939678,1776760065648,-500.0,9.594e-05,2]
[420939679,1776760065678,-583.70573701,9.594e-05,2]
[420939680,1776760065710,-415.33400939,9.594e-05,2]
[420939681,1776760065735,-500.0,9.594e-05,2]
[420939682,1776760065760,-500.0,9.594e-05,2]
[420939683,1776760065784,-500.0,9.594e-05,2]
[420939684,1776760065807,-356.43581092,9.594e-05,2]
[420939685,1776760066314,-111.65655827,9.594e-05,2]
[420939686,1776760066340,-182.76355463,9.594e-05,2]
[420939687,1776760066362,-162.56,9.595e-05,2]
[420939688,1776760066385,-150.0,9.595e-05,2]
[420939689,1776760066410,-9393.0198871,9.595e-05,2]
[420939690,1776760067575,-10000.0,9.595e-05,2]
[420939691,1776760069608,-10000.0,9.595e-05,2]
[420939692,1776760070789,-757.6776129,9.595e-05,2]
[420939693,1776760070822,-9242.3223871,9.595e-05,2]
[420939694,1776760071772,-10000.0,9.595e-05,2]
[420939695,1776760072739,-10000.0,9.595e-05,2]
[420939696,1776760082989,-6229.0,9.495e-05,2]
[420939704,1776760231480,-300.0,9.494e-05,2]
[420939705,1776760231491,-1200.0,9.494e-05,2]
[420939706,1776760231500,-300.0,9.494e-05,2]
[420939707,1776760231510,-150.0,9.494e-05,2]
[420939708,1776760231520,-162.0,9.495e-05,3]
[420939709,1776760231531,-42291.5006,9.495e-05,2]
[420939710,1776760231541,-129375.8382,9.495e-05,2]
[420939711,1776760231551,-300.0,9.495e-05,2]
[420939712,1776760231560,-500.37930615,9.573e-05,2]
[420939713,1776760231571,-219.1699123,9.594e-05,2]
[420939714,1776760231581,-162.19,9.756e-05,2]
[420939715,1776760231591,-260.0,9.863e-05,2]
[420939716,1776760231602,-256.17,9.868e-05,2]
[420939717,1776760231612,-151.0,0.0001,2]
[420939718,1776760231623,-151.0,0.0001,2]
[420939719,1776760231633,-151.0,0.0001,2]
[420939720,1776760231643,-151.0,0.0001,2]
[420939721,1776760231653,-151.0,0.0001,2]
[420939722,1776760231663,-151.0,0.0001,2]
[420939723,1776760231674,-151.0,0.0001,2]
[420939724,1776760231689,-151.0,0.0001,2]
[420939725,1776760231699,-151.0,0.0001,2]
[420939726,1776760231710,-151.0,0.0001,2]
[420939727,1776760231721,-151.0,0.0001,2]
[420939728,1776760231732,-1039.13670815,0.0001,2]
[420939729,1776760231742,-2579.79613952,0.0001,2]
[420939730,1776760231752,-2827.03032002,0.0001,2]
[420939731,1776760231762,-2332.56195908,0.0001,2]
[420939732,1776760231772,-256.18,0.00010142,2]
[420939733,1776760231782,-7429.6,0.00010166,2]
[420939734,1776760231792,-332.33,0.00010237,2]
[420939735,1776760231803,-179.22,0.00010261,2]
[420939737,1776760231812,-420.0,0.00010444,2]
[420939739,1776760231822,-255.0,0.00010444,2]
[420939740,1776760231832,-150.99,0.000106,2]
[420939741,1776760231842,-299.99,0.000106,2]
[420939742,1776760231854,-9999.99,0.000106,2]
[420939743,1776760231864,-9999.99,0.000106,2]
[420939745,1776760231874,-542.86,0.000106,2]
[420939746,1776760231884,-3354.09005564,0.00010649,2]
[420939747,1776760231909,-508.0,0.00010649,2]
[420939749,1776760231927,-388.27807364,0.00010649,2]
[420939750,1776760232082,-452.9517951,0.00010649,2]
[420939751,1776760232095,-344.67608952,0.00010649,2]
[420939752,1776760232106,-92.54053108,0.00010673,2]
[420939755,1776760237625,-323.8279418,0.00010673,2]
[420939756,1776760237638,-83.63152712,0.00010673,2]
[420939757,1776760237647,-273.76479033,0.00010673,2]
[420939758,1776760237659,-338.15789041,0.00010673,2]
[420939759,1776760237668,-290.73380658,0.00010699,2]
[420939760,1776760237678,-457.98804231,0.00010699,2]
[420939761,1776760237736,-42.01195769,0.00010699,2]
[420939762,1776760237746,-500.0,0.00010699,2]
[420939763,1776760237755,-500.0,0.00010699,2]
[420939764,1776760237765,-500.0,0.00010699,2]
[420939765,1776760237774,-583.75442987,0.00010699,2]
[420939766,1776760237784,-27309.98441255,0.000107,2]
[420939778,1776760239658,-2271.31682705,9.495e-05,2]
[420939779,1776760239682,-750.0,9.495e-05,2]
[420939780,1776760239694,-716.08287039,9.495e-05,2]
[420939781,1776760239704,-2126.84206322,9.495e-05,2]
[420939782,1776760239716,-978.64373934,9.495e-05,2]
[420939783,1776760239725,-8584.74297512,0.000107,2]
[420939784,1776760239736,-901.67907922,0.000107,2]
[420939785,1776760239748,-1015.96867818,0.000107,2]
[420939786,1776760240182,-1128.17090217,0.000107,2]
[420939787,1776760240193,-258.117,0.000107,2]
[420939788,1776760240204,-1655.35490122,0.000107,2]
[420939789,1776760240215,-483.65945066,0.000107,2]
[420939790,1776760240226,-862.91952571,0.000107,2]
[420939791,1776760240237,-50939.28945557,0.000107,2]
[420939792,1776760240246,-150.0,0.00010704,2]
[420939793,1776760240255,-150.0,0.00010704,2]
[420939794,1776760240264,-150.0,0.00010704,2]
[420939795,1776760240273,-150.0,0.00010704,2]
[420939796,1776760240283,-150.134,0.00010704,2]
[420939797,1776760240292,-1265.0,0.00010704,2]
[420939798,1776760240302,-925.06,0.00010704,2]
[420939799,1776760240311,-1219.0,0.00010704,2]
[420939800,1776760240320,-6031.0,0.00010704,2]
[420939801,1776760240329,-1349.0,0.00010704,2]
[420939802,1776760240338,-5310.76,0.0001074,2]
[420939803,1776760240347,-500.0,0.00010774,2]
[420939804,1776760240357,-438.36644093,0.00010774,2]
[420939805,1776760240366,-151.0,0.00010784,2]
[420939806,1776760240375,-272.62438347,0.00010876,2]
[420939807,1776760240384,-4804.68152377,0.000109,2]
[420939808,1776760240393,-1852.42,0.00010919,2]
[420939809,1776760240403,-150.0,0.00010959,2]
[420939810,1776760240413,-3240.0,0.00010959,2]
[420939811,1776760240423,-381.0,0.00011033,5]
[420939812,1776760240432,-306.0,0.00011033,5]
[420939813,1776760240441,-159.0,0.00011033,5]
[420939814,1776760240451,-6185.65226244,0.00011061,2]
[420939815,1776760240562,-175.96730411,9.494e-05,2]
[420939817,1776760240572,-777.89436634,0.00011061,2]
[420939875,1776760242620,-377.66465843,0.00010699,2]
[420939876,1776760242629,-500.0,0.00010699,2]
[420939877,1776760242639,-2588.62123669,0.00011061,2]
[420939878,1776760242648,-721.12765535,0.00011061,2]
[420939879,1776760242658,-500.0,0.00011061,2]
[420939880,1776760242667,-1428.38747117,0.00011061,2]
[420939881,1776760242676,-187.78006525,0.00011061,2]
[420939882,1776760242685,-151.0,0.00011061,2]
[420939883,1776760242695,-275.66265529,0.00011061,2]
[420939884,1776760242704,-2000.0,0.00011061,2]
[420939885,1776760242713,-578.20924308,0.00011061,2]
[420939886,1776760242723,-610.29963609,0.00011061,2]
[420939887,1776760243000,-2366.323,0.00010704,2]
[420939933,1776760246657,-1163.677,0.00010704,2]
[420939934,1776760246668,-1389.70036391,0.00011061,2]
[420939935,1776760246679,-2000.0,0.00011061,2]
[420939936,1776760246690,-1000.0,0.00011061,2]
[420939937,1776760246702,-209.40437684,0.00011061,2]
[420939938,1776760246714,-743.50770149,0.00011061,2]
[420939939,1776760246725,-203.87379393,0.00011061,2]
[420939940,1776760246736,-174.61919141,0.00011061,2]
[420939941,1776760246748,-1000.0,0.00011061,2]
[420939942,1776760246759,-372.1520394,0.00011061,2]
[420939943,1776760246809,-627.8479606,0.00011061,2]
[420939944,1776760246820,-1000.0,0.00011061,2]
[420939945,1776760246832,-1000.0,0.00011061,2]
[420939946,1776760246843,-1000.0,0.00011061,2]
[420939947,1776760246854,-235.75327194,0.00011061,2]
[420939948,1776760246866,-1000.0,0.00011061,2]
[420939949,1776760246878,-244.476143,0.00011061,2]
[420939950,1776760246890,-1125.76505022,0.00011061,2]
[420939951,1776760246902,-375.300245,0.00011061,2]
[420939952,1776760246914,-209.40437684,0.00011061,2]
[420939953,1776760246926,-693.3919763,0.00011061,2]
[420939954,1776760246937,-279.9045709,0.00011061,2]
[420939955,1776760246950,-179.22,0.00011107,2]
[420939956,1776760246967,-3024.4697112,0.00011116,2]
[420939957,1776760247009,-380.987,0.00011116,2]
[420939958,1776760247057,-6500.1413653,0.00011116,2]
[420939959,1776760247071,-500.0,0.00011116,2]
[420939960,1776760247082,-138.54074196,0.00011116,2]
[420939961,1776760247096,-12.45925804,0.00011116,2]
[420939962,1776760247107,-1570.05214196,0.00011171,2]
[420939963,1776760247140,-901.97472321,0.00011171,2]
[420939993,1776761433486,-257.0,8.717e-05,2]
[420939994,1776761433496,-2000.0,8.717e-05,2]
[420939995,1776761433506,-1600.0,8.768e-05,2]
[420939996,1776761433515,-153.96276887,8.768e-05,2]
[420939997,1776761433525,-1926.49,8.922e-05,2]
[420939998,1776761433534,-193.30559356,8.923e-05,2]
[420939999,1776761433543,-452.13516194,8.923e-05,2]
[420940000,1776761433553,-1200.0,8.969e-05,2]
[420940001,1776761433562,-1749.21,8.97e-05,2]
[420940002,1776761433571,-300.0,9.133e-05,2]
[420940003,1776761433581,-300.0,9.133e-05,2]
[420940004,1776761433590,-4972.639356,9.134e-05,2]
[420940005,1776761433600,-240.43087245,9.181e-05,2]
[420940006,1776761433612,-875.47912755,9.181e-05,2]
[420940007,1776761433622,-41862.23528612,9.387e-05,2]
[420940008,1776761433634,-443.39958113,9.387e-05,2]
[420940009,1776761433654,-1272.90455143,9.387e-05,2]
[420940010,1776761433678,-474.41347366,9.387e-05,2]
[420940011,1776761433753,-1696.65997328,9.387e-05,2]
[420940014,1776761437783,-5093.14093438,9.387e-05,2]
[420940015,1776761437794,-150.0,9.394e-05,2]
[420940016,1776761437804,-11548.34251868,9.395e-05,2]
[420940017,1776761437817,-3524.66428132,9.395e-05,2]
[420940018,1776761437827,-730.11054898,9.395e-05,2]
[420940019,1776761438204,-603.22941727,9.395e-05,2]
[420940020,1776761438364,-3240.42003375,9.395e-05,2]
[420940021,1776761438374,-2500.0,9.395e-05,2]
[420940022,1776761438384,-9880.02,9.44e-05,2]
[420940023,1776761438393,-176.24,9.449e-05,2]
[420940024,1776761438403,-500.0,9.463e-05,2]
[420940025,1776761438414,-501.2224428,9.463e-05,2]
[420940026,1776761438423,-634.57042281,9.463e-05,2]
[420940027,1776761438433,-500.0,9.473e-05,2]
[420940028,1776761438442,-500.0,9.473e-05,2]
[420940029,1776761438452,-542.53299788,9.486e-05,2]
[420940030,1776761438461,-500.0,9.486e-05,2]
[420940031,1776761438471,-500.0,9.486e-05,2]
[420940032,1776761438481,-500.0,9.486e-05,2]
[420940033,1776761438491,-500.0,9.486e-05,2]
[420940034,1776761438500,-599.76509777,9.486e-05,2]
[420940035,1776761438510,-500.0,9.486e-05,2]
[420940036,1776761438519,-500.0,9.486e-05,2]
[420940037,1776761438529,-500.0,9.486e-05,2]
[420940038,1776761438539,-500.0,9.486e-05,2]
[420940039,1776761438549,-500.0,9.486e-05,2]
[420940040,1776761438559,-335.0,9.486e-05,2]
[420940041,1776761438568,-500.0,9.486e-05,2]
[420940042,1776761438578,-500.0,9.486e-05,2]
[420940043,1776761438588,-500.0,9.486e-05,2]
[420940044,1776761438598,-500.0,9.486e-05,2]
[420940045,1776761438607,-500.0,9.486e-05,2]
[420940046,1776761438618,-500.0,9.486e-05,2]
[420940047,1776761438627,-500.0,9.486e-05,2]
[420940048,1776761438637,-500.0,9.486e-05,2]
[420940049,1776761438646,-881.46,9.487e-05,2]
[420940050,1776761438656,-13645.0859051,9.487e-05,2]
[420940051,1776761438668,-1116.32649408,9.487e-05,2]
[420940052,1776761438680,-981.56,9.487e-05,2]
[420940053,1776761438691,-324.99000432,9.487e-05,2]
[420940054,1776761438703,-7307.36609069,9.487e-05,2]
[420940055,1776761438715,-1624.66150581,9.487e-05,2]
[420940056,1776761438724,-150.99,9.487e-05,2]
[420940085,1776761439189,-2957.84,9.487e-05,2]
[420940086,1776761439215,-151.0,9.492e-05,2]
[420940087,1776761439225,-499.99,9.492e-05,2]
[420940088,1776761439235,-9999.99,9.492e-05,2]
[420940089,1776761439245,-4087.894,9.494e-05,2]
[420940090,1776761439254,-275.173,9.494e-05,2]
[420940091,1776761439263,-596.19,9.494e-05,2]
[420940092,1776761439273,-500.0,9.494e-05,2]
[420940093,1776761439282,-6582.5,9.494e-05,2]
[420940094,1776761439292,-250.0,9.589e-05,2]
[420940095,1776761439302,-300.0,9.589e-05,2]
[420940097,1776761439311,-5000.0,9.589e-05,2]
[420940098,1776761439321,-250.0,9.589e-05,2]
[420940099,1776761439330,-2000.0,9.659e-05,2]
[420940101,1776761439340,-150.0,9.666e-05,2]
[420940103,1776761439350,-150.0,9.666e-05,2]
[420940105,1776761439359,-150.21102821,9.666e-05,2]
[420940107,1776761439369,-216.6162676,9.666e-05,2]
[420940109,1776761439378,-150.0,9.666e-05,2]
[420940111,1776761439387,-150.0,9.666e-05,2]
[420940114,1776761439397,-150.55572869,9.666e-05,2]
[420940116,1776761439406,-150.0,9.666e-05,2]
[420940118,1776761439417,-150.75656802,9.666e-05,2]
[420940120,1776761439426,-150.0,9.666e-05,2]
[420940122,1776761439435,-150.70020305,9.666e-05,2]
[420940123,1776761439445,-150.0,9.666e-05,2]
[420940125,1776761439454,-150.0,9.666e-05,2]
[420940127,1776761439464,-193.0,9.814e-05,2]
[420940130,1776761439473,-300.0,9.814e-05,2]
[420940132,1776761439483,-618.43169862,9.814e-05,2]
[420940134,1776761439499,-1198.33970087,9.814e-05,2]
[420940239,1776761440416,-765.0,9.814e-05,2]
[420940281,1776761440788,-1350.765828,9.814e-05,2]
[420940333,1776761442892,-1067.46277251,9.814e-05,2]
[420940334,1776761442902,-250.0,9.814e-05,2]
[420940335,1776761442912,-1600.0,9.864e-05,2]
[420940336,1776761442922,-1116.0,9.866e-05,2]
[420940337,1776761442932,-150.0,9.912e-05,2]
[420940338,1776761442941,-848.24266212,9.912e-05,2]
[420940339,1776761442999,-1004.17733788,9.912e-05,2]
[420940340,1776761443008,-150.0,9.934e-05,2]
[420940341,1776761443018,-150.0,9.934e-05,2]
[420940342,1776761443028,-8709.83769053,9.97e-05,2]
[420940343,1776761443037,-543.22,0.0001,2]
[420940344,1776761443046,-190.64198698,0.0001,2]
[420940345,1776761443055,-280.1242301,0.0001,2]
[420940346,1776761443064,-257.33447487,0.0001,2]
[420940347,1776761443074,-271.77610558,0.0001,2]
[420940348,1776761443083,-151.0,0.0001,2]
[420940349,1776761443092,-232.1486567,0.0001,2]
[420940350,1776761443102,-165.08973434,0.0001,2]
[420940351,1776761443111,-500.0,0.0001,2]
[420940352,1776761443120,-500.0,0.0001,2]
[420940353,1776761443129,-500.0,0.0001,2]
[420940354,1776761443138,-500.0,0.0001,2]
[420940355,1776761443147,-500.0,0.0001,2]
[420940356,1776761443157,-500.0,0.0001,2]
[420940357,1776761443166,-287.65459605,0.0001,2]
[420940358,1776761443175,-503.30501286,0.00010021,2]
[420940359,1776761443184,-150.0,0.00010024,2]
[420940360,1776761443193,-300.0,0.00010026,2]
[420940361,1776761443202,-300.0,0.00010047,2]
[420940362,1776761443212,-150.0,0.00010188,2]
[420940363,1776761443221,-150.0,0.00010203,2]
[420940364,1776761443230,-150.0,0.00010203,2]
[420940365,1776761443239,-200.0,0.00010221,2]
[420940366,1776761443248,-543.22,0.00010274,2]
[420940367,1776761443257,-195.0,0.00010334,2]
[420940368,1776761443267,-150.0,0.00010382,2]
[420940369,1776761443276,-161.03,0.00010461,2]
[420940370,1776761443286,-150.0,0.00010463,2]
[420940371,1776761443295,-150.0,0.00010471,2]
[420940372,1776761443304,-150.0,0.00010471,2]
[420940373,1776761443313,-383.72505648,0.00010548,2]
[420940374,1776761443325,-159.49494352,0.00010548,2]
[420940375,1776761443335,-158.0,0.000106,2]
[420940376,1776761443344,-41.60065799,0.000106,2]
[420940379,1776761443363,-116.39934201,0.000106,2]
[420940380,1776761443372,-240.74,0.00010601,2]
[420940381,1776761443381,-151.0,0.00010664,2]
[420940382,1776761443390,-1000.0,0.00010699,2]
[420940383,1776761443399,-72.93755667,0.00010735,2]
[420940385,1776761445742,-1427.06244333,0.00010735,2]
[420940386,1776761445752,-150.0,0.00010738,2]
[420940387,1776761445762,-150.0,0.0001074,2]
[420940388,1776761445772,-151.70461561,0.0001074,2]
[420940389,1776761445782,-150.00000001,0.0001074,2]
[420940390,1776761445791,-150.00000001,0.0001074,2]
[420940391,1776761445801,-150.0,0.0001074,2]
[420940392,1776761445811,-150.0,0.0001074,2]
[420940393,1776761445820,-150.0,0.0001074,2]
[420940394,1776761445830,-622.0,0.00010751,2]
[420940395,1776761445840,-1048.0,0.00010751,2]
[420940396,1776761445849,-2839.93375026,0.00010751,2]
[420940397,1776761445861,-690.06624974,0.00010751,2]
[420940398,1776761445871,-416.0,0.00010751,2]
[420940399,1776761445880,-3780.0,0.00010751,2]
[420940400,1776761445891,-569.43359646,0.00010751,2]
[420940401,1776761445902,-361.31686755,0.00010751,2]
[420940402,1776761445914,-285.8264201,0.00010751,2]
[420940403,1776761445927,-4814.42311589,0.00010751,2]
[420940404,1776761445936,-543.22,0.00010822,2]
[420940405,1776761445946,-2000.0,0.00010866,2]
[420940406,1776761445955,-4804.68152377,0.0001094,2]
[420940407,1776761445965,-150.0,0.00010959,2]
[420940408,1776761445974,-1600.0,0.0001096,2]
[420940409,1776761445983,-161.79,0.00011,2]
[420940410,1776761445992,-158.0,0.00011,2]
[420940411,1776761446002,-241.96,0.00011014,2]
[420940412,1776761446011,-300.0,0.00011039,2]
[420940413,1776761446020,-300.0,0.00011039,2]
[420940414,1776761446030,-500.0,0.00011039,2]
[420940415,1776761446039,-500.0,0.00011039,2]
[420940416,1776761446048,-203.5136646,0.00011039,2]
[420940417,1776761446057,-500.0,0.00011039,2]
[420940418,1776761446067,-500.0,0.00011039,2]
[420940419,1776761446076,-476.96884821,0.00011039,2]
[420940420,1776761446086,-583.75442987,0.00011039,2]
[420940421,1776761446096,-5834.60515847,0.0001104,2]
[420940422,1776761446112,-764.5022597,0.0001104,2]
[420940423,1776761446127,-2458.52,0.0001104,2]
[420940424,1776761446146,-66228.25260783,0.0001104,2]
[420940425,1776761446156,-5709.0838343,0.0001104,2]
[420940426,1776761446165,-7507.1987804,0.0001104,2]
[420940427,1776761446176,-151.0,0.0001104,2]
[420940428,1776761446185,-151.0,0.0001104,2]
[420940429,1776761446195,-151.0,0.0001104,2]
[420940430,1776761446204,-1377.6850817,0.0001104,2]
[420940431,1776761446213,-247.154419,0.0001104,2]
[420940432,1776761446223,-247.154419,0.0001104,2]
[420940433,1776761446232,-247.154419,0.0001104,2]
[420940434,1776761446241,-247.154419,0.0001104,2]
[420940435,1776761446251,-543.22,0.00011096,2]
[420940436,1776761446260,-1022.55729967,0.00011098,2]
[420940437,1776761446270,-152.60454768,0.00011099,2]
[420940438,1776761446279,-151.0,0.00011116,2]
[420940439,1776761446289,-151.0,0.00011116,2]
[420940440,1776761446298,-151.0,0.00011116,2]
[420940441,1776761446307,-300.0,0.00011129,2]
[420940442,1776761446317,-578.20924308,0.0001113,2]
[420940443,1776761446326,-200.0,0.0001113,2]
[420940445,1776761446336,-9552.16786547,0.0001113,2]
[420940447,1776761446345,-164.13414401,0.0001113,2]
[420940448,1776761446354,-721.12765535,0.0001113,2]
[420940450,1776761446363,-500.0,0.0001113,2]
[420940451,1776761446372,-151.0,0.0001113,2]
[420940452,1776761446381,-1428.38747117,0.0001113,2]
[420940454,1776761446390,-2000.0,0.0001113,2]
[420940455,1776761446400,-201.93286099,0.0001113,2]
[420940456,1776761446409,-2000.0,0.0001113,2]
[420940457,1776761446418,-2000.0,0.0001113,2]
[420940458,1776761446427,-2000.0,0.0001113,2]
[420940459,1776761446437,-2000.0,0.0001113,2]
[420940460,1776761446446,-2000.0,0.0001113,2]
[420940461,1776761446455,-2000.0,0.0001113,2]
[420940462,1776761446464,-2000.0,0.0001113,2]
[420940463,1776761446474,-2000.0,0.0001113,2]
[420940464,1776761446484,-2000.0,0.0001113,2]
[420940465,1776761446493,-2000.0,0.0001113,2]
[420940466,1776761446503,-174.61919141,0.0001113,2]
[420940467,1776761446512,-743.50770149,0.0001113,2]
[420940468,1776761446521,-740.25215504,0.0001113,2]
[420940469,1776761446531,-279.9045709,0.0001113,2]
[420940470,1776761446540,-181.25407005,0.0001113,2]
[420940471,1776761446550,-162.0,0.00011171,3]
[420940472,1776761446559,-9905.5980765,0.00011185,2]
[420940473,1776761446569,-500.0,0.00011185,2]
[420940474,1776761446578,-151.0,0.00011185,2]
[420940475,1776761446588,-159.0,0.0001119,5]
[420940476,1776761446598,-235.0,0.0001119,5]
[420940477,1776761446608,-150.0,0.00011233,2]
[420940478,1776761446618,-10272.10520533,0.0001124,2]
[420940479,1776761446627,-500.0,0.0001124,2]
[420940480,1776761446637,-151.0,0.0001124,2]
[420940481,1776761446647,-259.45,0.00011247,2]
[420940482,1776761446657,-1238.78,0.00011247,2]
[420940483,1776761446667,-500.0,0.00011295,2]
[420940484,1776761446677,-6232.09204045,0.00011295,2]
[420940485,1776761446687,-151.0,0.00011295,2]
[420940486,1776761446697,-500.0,0.0001135,2]
[420940487,1776761446707,-151.0,0.0001135,2]
[420940488,1776761446717,-543.22562408,0.0001137,2]
[420940489,1776761446727,-162.19,0.00011382,2]
[420940490,1776761446736,-500.0,0.00011405,2]
[420940491,1776761446746,-151.0,0.00011405,2]
[420940492,1776761446757,-500.0,0.0001146,2]
[420940493,1776761446766,-151.0,0.0001146,2]
[420940494,1776761446776,-784.4,0.00011507,2]
[420940495,1776761446786,-500.0,0.00011515,2]
[420940496,1776761446796,-151.0,0.00011515,2]
[420940497,1776761446806,-345.34,0.00011519,2]
[420940498,1776761446816,-500.0,0.0001157,2]
[420940499,1776761446825,-151.0,0.0001157,2]
[420940500,1776761446835,-262.14002101,0.00011614,2]
[420940501,1776761446844,-500.0,0.00011625,2]
[420940502,1776761446854,-151.0,0.00011625,2]
[420940503,1776761446864,-200.0,0.00011678,2]
[420940504,1776761446874,-1481.23780761,0.00011678,2]
[420940505,1776761446884,-181.08010149,0.00011678,2]
[420940506,1776761446893,-290.26104003,0.00011678,2]
[420940507,1776761446902,-500.0,0.0001168,2]
[420940508,1776761446912,-151.0,0.0001168,2]
[420940509,1776761446923,-3478.0,0.000117,2]
[420940510,1776761446932,-993.38144616,0.0001176,2]
[420940511,1776761446942,-160.0,0.0001176,2]
[420940512,1776761446951,-845.448588,0.0001176,2]